bitfinex-derivatives/quotes_ETHF0:USTF0_20251009
["timestamp","ask_amount","ask_price","bid_price","bid_amount"]
[1760013820024,0.1402,4409.5,4408.0,0.00278198]
[1760013820025,0.3413,4408.4,4408.0,0.00278198]
[1760013820327,0.3413,4408.1,4408.0,0.00278198]
[1760013820924,0.3413,4408.1,4408.0,0.32168198]
[1760013821125,0.3413,4408.1,4408.0,0.00278198]
[1760013822332,0.232,4408.3,4408.0,0.32168198]
[1760013822626,0.3413,4408.8,4408.2,0.4082]
[1760013822832,0.40816,4408.7,4408.2,0.4082]
[1760013823027,0.3413,4408.5,4408.3,0.3189]
[1760013823229,0.3413,4408.5,4408.4,0.40818]
[1760013823424,0.74945,4408.8,4408.5,0.72707]
[1760013823619,0.74945,4408.8,4408.0,0.00278198]
[1760013823620,3.61593,4409.0,4408.7,0.72705]
[1760013823930,0.74944,4408.9,4408.7,0.72705]
[1760013824724,0.74944,4408.9,4408.7,0.3189]
[1760013824925,0.75134,4408.9,4408.7,0.72705]
[1760013825126,0.3432,4408.8,4408.7,0.72705]
[1760013825425,0.232,4409.1,4408.3,3.2078]
[1760013825426,0.3432,4409.1,4409.0,0.40813]
[1760013825628,0.90393755,4409.1,4409.0,0.40813]
[1760013825823,0.40814,4408.9,4408.4,0.3497]
[1760013826028,0.1338,4409.0,4408.3,3.61599]
[1760013826228,0.3432,4408.5,4408.4,0.40818]
[1760013826824,0.75138,4408.4,4408.3,3.2078]
[1760013827424,0.75138,4408.4,4408.2,0.4082]
[1760013827726,0.3432,4408.3,4408.2,0.4082]
[1760013828134,0.3432,4408.2,4408.1,0.40821]
[1760013829129,0.90556887,4408.2,4408.1,0.40821]
[1760013829728,0.75141,4408.1,4408.0,0.00278198]
[1760013829936,1.31377887,4408.1,4408.0,0.00278198]
[1760013830337,0.90556887,4408.1,4408.0,0.00278198]
[1760013831030,0.90594664,4408.1,4408.0,0.00278198]
[1760013831734,11.99666357,4408.1,4407.1,3.2078]
[1760013832032,11.99666357,4408.1,4406.7,0.40834]
[1760013832033,0.3432,4407.2,4406.7,0.40834]
[1760013832334,0.3432,4407.2,4407.0,0.4083]
[1760013832335,0.90594664,4407.1,4407.0,0.4083]
[1760013832736,0.40831,4407.0,4406.8,0.40832]
[1760013832929,0.3432,4406.7,4406.6,0.40835]
[1760013833129,0.56274664,4406.8,4406.6,0.75987899]
[1760013833325,0.3432,4407.1,4407.0,0.40831]
[1760013833536,0.9054746,4407.1,4407.0,0.75801]
[1760013835034,0.40831,4407.0,4406.9,0.40832]
[1760013835235,1.4475846,4407.0,4406.9,0.40832]
[1760013835537,0.3432,4406.7,4406.6,0.00182899]
[1760013835939,0.3432,4406.7,4406.6,0.41017899]
[1760013836137,0.3432,4406.7,4406.6,0.75987899]
[1760013837033,0.3432,4406.7,4406.6,0.41017899]
[1760013837433,0.3432,4406.7,4406.6,0.00182899]
[1760013837643,0.9048586,4406.7,4406.6,0.00182899]
[1760013838032,4.090589,4406.7,4406.6,0.00182899]
[1760013838436,0.3493,4407.3,4407.2,0.40829]
[1760013838636,0.3493,4407.3,4407.2,0.3172]
[1760013838833,0.3493,4406.9,4406.6,0.31902899]
[1760013839038,0.1356,4407.0,4406.6,0.00182899]
[1760013839249,0.75764,4406.8,4406.6,0.00182899]
[1760013839544,4.11417858,4406.7,4406.6,0.00182899]
[1760013839941,7.093062,4406.7,4406.6,0.00182899]
[1760013840139,12.093062,4406.7,4406.6,0.00182899]
[1760013840534,12.324062,4406.7,4406.6,0.00182899]
[1760013840740,7.324062,4406.7,4406.6,0.00182899]
[1760013841035,12.324062,4406.7,4406.6,0.00182899]
[1760013841240,0.75772,4405.8,4405.7,3.2078]
[1760013841642,0.75772,4405.8,4405.1,3.525]
[1760013841841,0.3493,4405.8,4405.2,40.8]
[1760013842042,0.3493,4405.8,4405.6,0.40844]
[1760013842342,0.3493,4405.7,4405.6,0.00254564]
[1760013843142,0.41117892,4405.8,4405.7,0.40843]
[1760013843143,0.00274892,4405.8,4405.7,0.40843]
[1760013843444,0.00274892,4405.8,4405.7,0.72563]
[1760013844445,0.35204892,4405.8,4405.7,0.40843]
[1760013844748,0.3493,4405.7,4405.6,0.41098564]
[1760013845250,0.3493,4405.7,4405.6,0.72818564]
[1760013845450,0.00274892,4405.8,4405.7,0.3172]
[1760013845650,0.35204892,4405.8,4405.7,0.3172]
[1760013846049,0.00274892,4405.8,4405.7,5.3172]
[1760013846749,0.00274892,4405.8,4405.7,5.5482]
[1760013848747,3.5571,4407.8,4407.6,0.72545]
[1760013848948,0.3493,4407.7,4407.6,0.3172]
[1760013849144,2.92409167,4407.7,4406.4,3.525]
[1760013849445,2.92409167,4407.7,4406.6,0.40835]
[1760013849446,0.3493,4406.7,4406.6,0.40835]
[1760013849654,0.3493,4406.7,4406.6,41.52555]
[1760013849655,0.00169149,4406.7,4406.6,41.52555]
[1760013850149,0.00169149,4406.7,4406.6,46.52555]
[1760013850350,0.00169149,4406.7,4406.6,40.8]
[1760013850351,0.35099149,4406.7,4406.6,40.8]
[1760013850548,0.3493,4406.6,4406.5,0.40835]
[1760013851042,0.3493,4406.5,4406.4,3.2078]
[1760013853341,0.00169149,4406.7,4406.6,0.3172]
[1760013856145,0.35099149,4406.7,4406.6,0.3172]
[1760013856346,0.3493,4406.6,4406.5,0.40836]
[1760013856747,0.1356,4406.5,4406.4,3.2078]
[1760013856957,0.54396,4406.5,4406.2,0.40839]
[1760013857159,0.3493,4406.3,4406.2,0.40838]
[1760013857352,0.3493,4406.3,4405.8,3.525]
[1760013857557,0.3493,4406.4,4406.3,0.40837]
[1760013858063,0.3493,4406.4,4405.9,40.8]
[1760013858064,0.40838,4406.3,4405.9,41.20841]
[1760013858357,0.3493,4406.0,4405.8,3.61622]
[1760013858557,0.3493,4405.9,4405.8,3.61622]
[1760013859458,3.2078,4406.4,4406.2,0.40838]
[1760013859459,0.3493,4406.3,4406.2,0.40838]
[1760013859755,0.1356,4406.5,4406.0,0.4084]
[1760013859756,0.40839,4406.2,4406.0,0.4084]
[1760013860062,0.3493,4406.1,4406.0,0.4084]
[1760013860558,0.54401,4406.0,4405.8,3.2078]
[1760013860760,0.3493,4405.9,4405.8,3.2078]
[1760013862056,0.3493,4405.9,4405.8,3.525]
[1760013862559,0.3493,4406.5,4406.4,0.3172]
[1760013862753,0.3493,4406.5,4406.3,0.40838]
[1760013862959,0.3493,4406.4,4406.3,0.40838]
[1760013863560,0.3493,4406.2,4405.8,3.4388]
[1760013863859,0.3493,4406.2,4406.1,0.4084]
[1760013864560,0.54396,4406.5,4406.3,0.40837]
[1760013864753,0.3493,4406.4,4406.3,0.40837]
[1760013865155,0.3493,4406.4,4406.3,0.72557]
[1760013866256,0.3493,4406.4,4406.3,0.40837]
[1760013866661,0.23269149,4406.7,4406.6,0.40835]
[1760013866862,0.23269149,4406.7,4406.6,0.72555]
[1760013867160,0.23269149,4406.7,4406.6,0.40835]
[1760013867361,0.4849,4406.5,4406.4,0.40837]
[1760013867658,0.89326,4406.5,4406.4,0.40837]
[1760013868462,0.74437,4406.4,4406.3,0.40838]
[1760013868665,0.336,4406.4,4406.3,0.40838]
[1760013869466,0.97703149,4406.7,4406.6,0.40835]
[1760013869757,0.56869149,4406.7,4406.6,0.40835]
[1760013870261,0.56869149,4406.7,4406.6,0.74445]
[1760013870463,0.56869149,4406.7,4406.6,0.40835]
[1760013871059,0.54382,4408.0,4407.4,0.3361]
[1760013871259,0.89298159,4407.9,4407.8,0.40824]
[1760013871456,0.89298159,4407.9,4407.6,0.40825]
[1760013871457,0.336,4407.9,4407.6,0.40825]
[1760013871755,0.336,4407.9,4407.7,0.40824]
[1760013871756,0.336,4407.8,4407.7,0.40824]
[1760013871958,0.1356,4408.0,4407.3,40.8]
[1760013872154,0.336,4407.4,4407.3,0.40828]
[1760013872957,3.34514979,4408.0,4407.7,0.40824]
[1760013873158,0.74423,4407.9,4407.7,0.40824]
[1760013873463,0.336,4407.5,4407.4,0.40827]
[1760013874055,3.75337979,4408.0,4407.9,0.40823]
[1760013874259,4.08937979,4408.0,4407.9,0.40823]
[1760013874565,6.58807128,4408.0,4407.9,0.40823]
[1760013874757,3.68114979,4408.0,4407.9,0.40823]
[1760013876468,0.336,4407.9,4407.7,0.40824]
[1760013876668,0.74424,4407.8,4407.7,0.40824]
[1760013877271,3.91214979,4408.0,4407.9,0.40823]
[1760013877773,3.77654979,4408.0,4407.9,0.74433]
[1760013878173,3.77654979,4408.0,4407.9,0.40823]
[1760013878373,3.91604979,4408.0,4407.9,0.40823]
[1760013879080,3.77654979,4408.0,4407.9,0.74433]
[1760013879377,0.56874979,4408.0,4407.9,0.74433]
[1760013880071,0.00174979,4408.0,4407.9,3.95213]
[1760013880976,0.00174979,4408.0,4407.9,44.75213]
[1760013881276,0.33774979,4408.0,4407.9,40.8]
[1760013881463,0.00174979,4408.0,4407.9,0.74433]
[1760013882077,0.33774979,4408.0,4407.9,0.74433]
[1760013882472,0.00174979,4408.0,4407.9,0.74433]
[1760013883981,0.33774979,4408.0,4407.9,41.54433]
[1760013884281,0.33774979,4408.0,4407.9,41.20823]
[1760013884487,0.33774979,4408.0,4407.9,41.52633]
[1760013884780,0.1263,4407.5,4407.3,3.2078]
[1760013885082,0.40829,4407.3,4407.1,0.4083]
[1760013885384,0.3476,4407.2,4407.1,0.4083]
[1760013885584,0.3476,4407.2,4407.1,0.7264]
[1760013885882,0.75588,4407.4,4406.7,3.4388]
[1760013886081,0.40829,4407.3,4406.8,0.3181]
[1760013886282,0.40829,4407.3,4407.2,0.72639]
[1760013886486,0.75589,4407.3,4407.2,0.72639]
[1760013886689,0.3476,4407.3,4407.2,0.72639]
[1760013886887,0.231,4407.7,4407.6,0.40826]
[1760013887088,0.5786,4407.7,4407.6,0.40826]
[1760013887384,0.5786,4407.7,4407.6,0.72636]
[1760013887588,0.00174979,4408.0,4407.9,0.3181]
[1760013889485,0.00174979,4408.0,4407.9,0.5491]
[1760013889678,0.00174979,4408.0,4407.9,0.3181]
[1760013889880,0.00174979,4408.0,4407.9,0.5491]
[1760013890792,0.1814,4408.5,4408.4,0.72628]
[1760013890988,0.1814,4408.5,4408.4,0.95728]
[1760013891187,3.2078,4408.8,4408.7,0.40816]
[1760013891388,3.2078,4408.8,4408.7,0.72626]
[1760013891685,3.20977269,4408.8,4408.7,0.7290074]
[1760013892192,0.00197269,4408.8,4408.7,0.7290074]
[1760013892892,0.34957269,4408.8,4408.7,0.7290074]
[1760013893092,0.34957269,4408.8,4408.7,0.0027474]
[1760013893093,3.55737269,4408.8,4408.7,0.0027474]
[1760013893688,0.4739,4408.0,4407.9,40.8]
[1760013893888,0.4739,4407.5,4407.4,0.40827]
[1760013894196,0.3476,4407.4,4407.3,0.40828]
[1760013894388,0.3476,4407.4,4406.7,3.4388]
[1760013894389,0.75588,4407.4,4406.7,3.4388]
[1760013894688,0.3476,4406.9,4406.3,0.3181]
[1760013894989,0.3476,4407.0,4406.9,0.40832]
[1760013895192,3.2078,4407.2,4407.0,0.40831]
[1760013895393,0.75592,4407.0,4406.8,0.40832]
[1760013895591,0.3476,4406.9,4406.8,0.40832]
[1760013895788,0.1263,4407.0,4406.8,0.40833]
[1760013895992,0.3476,4406.9,4406.8,0.40833]
[1760013897193,0.3476,4406.7,4406.3,0.00253949]
[1760013897498,0.3476,4406.7,4406.6,0.40835]
[1760013897894,0.3476,4407.0,4406.5,0.4497]
[1760013898096,0.3476,4407.2,4407.1,0.7264]
[1760013898395,0.3476,4407.2,4406.7,3.2078]
[1760013898694,0.98359,4407.3,4406.7,3.2078]
[1760013898895,0.98359,4407.3,4406.6,0.3494]
[1760013899098,0.98359,4407.3,4407.1,0.4083]
[1760013899395,3.5521,4407.2,4406.3,0.00253949]
[1760013899595,0.54702,4407.0,4406.9,0.40832]
[1760013899790,0.483,4407.0,4406.9,0.40832]
[1760013900193,0.3443,4406.9,4406.3,0.23353949]
[1760013900492,0.3443,4406.9,4406.8,0.40833]
[1760013900686,0.3443,4406.9,4406.8,0.75773]
[1760013901089,0.3443,4406.9,4406.7,0.40833]
[1760013901294,0.483,4407.0,4406.8,0.40833]
[1760013901495,0.3443,4406.9,4406.8,0.40833]
[1760013901690,0.40833,4406.9,4406.6,0.40834]
[1760013901891,0.1387,4406.5,4406.3,0.00253949]
[1760013902095,0.3443,4406.4,4406.3,0.00253949]
[1760013904696,0.3443,4406.4,4405.6,3.2078]
[1760013904697,0.40842,4405.9,4405.6,3.2078]
[1760013904998,0.3443,4405.7,4405.6,3.2078]
[1760013905298,0.3443,4405.7,4405.6,44.0078]
[1760013905505,0.54716,4405.5,4405.1,3.2078]
[1760013905699,0.54716,4405.5,4405.1,3.61629]
[1760013905995,0.3443,4405.4,4405.2,40.8]
[1760013906197,0.3443,4405.3,4405.2,40.8]
[1760013906601,0.3443,4405.2,4405.1,3.21064218]
[1760013907400,0.00230114,4405.5,4405.2,0.3494]
[1760013907602,0.00230114,4405.5,4405.4,0.75786]
[1760013908101,0.3443,4405.2,4405.1,0.00284218]
[1760013908602,3.31217801,4405.2,4405.1,0.00284218]
[1760013908805,8.31217801,4405.2,4405.1,0.00284218]
[1760013909703,0.1387,4404.5,4404.1,3.2078]
[1760013909904,0.483,4404.5,4404.4,0.40855]
[1760013910599,0.483,4404.5,4404.4,0.4113399]
[1760013912409,0.3443,4404.5,4404.4,0.7607399]
[1760013913604,0.483,4404.5,4404.4,0.4113399]
[1760013913801,0.483,4404.5,4404.4,0.0027899]
[1760013914004,0.1816,4404.9,4404.8,0.3494]
[1760013914407,0.1816,4404.9,4404.8,0.5804]
[1760013914996,0.1816,4404.9,4404.8,41.3804]
[1760013915201,0.00230114,4405.5,4405.4,0.75782]
[1760013915403,3.2078,4406.8,4405.6,0.3494]
[1760013915404,0.3443,4406.7,4405.6,0.3494]
[1760013915607,0.75261,4406.7,4406.0,3.2078]
[1760013915802,0.483,4406.5,4406.1,40.8]
[1760013916006,0.3443,4406.4,4406.1,41.20835]
[1760013916309,0.34722008,4406.4,4406.2,0.40834]
[1760013916502,0.34722008,4406.4,4406.1,40.8]
[1760013916503,0.3443,4406.3,4406.1,40.8]
[1760013916708,0.75265,4406.2,4406.1,40.8]
[1760013917310,0.40835,4406.2,4405.9,0.40837]
[1760013917511,0.3443,4406.0,4405.9,0.40837]
[1760013917912,0.3443,4406.0,4405.9,41.20837]
[1760013918810,0.3443,4406.0,4405.9,41.55777]
[1760013919011,0.5258,4406.3,4406.2,0.75775]
[1760013919518,0.5258,4406.3,4406.0,0.3494]
[1760013919911,0.5258,4406.3,4405.9,40.8]
[1760013920116,0.5258,4406.3,4406.1,0.75775]
[1760013920711,0.5258,4406.3,4406.1,0.40835]
[1760013920916,0.1815,4406.3,4406.2,0.3494]
[1760013921518,0.1815,4406.3,4406.2,5.3494]
[1760013922218,3.2078,4407.3,4406.7,0.3494]
[1760013922516,0.3443,4407.3,4407.2,0.3494]
[1760013922715,0.3443,4407.3,4407.2,41.1494]
[1760013922917,0.40821,4407.8,4407.2,41.1494]
[1760013923119,0.3443,4407.7,4407.5,0.40822]
[1760013923319,0.3443,4407.6,4407.5,0.41107863]
[1760013923819,0.3443,4407.6,4407.5,0.00285863]
[1760013925606,0.00160995,4407.8,4407.6,0.40822]
[1760013925818,0.00160995,4407.8,4407.7,0.3494]
[1760013926815,0.5511,4408.5,4408.4,0.75754]
[1760013926816,0.1814,4408.5,4408.4,0.75754]
[1760013927013,0.5257,4408.5,4408.4,0.40814]
[1760013927414,0.5257,4408.5,4408.4,41.20814]
[1760013927816,0.52737259,4408.5,4408.4,41.20814]
[1760013928217,0.52737259,4408.5,4408.4,41.55754]
[1760013928726,0.18307259,4408.5,4408.4,41.55754]
[1760013928913,0.00167259,4408.5,4408.4,41.55754]
[1760013929523,0.00167259,4408.5,4408.4,41.78854]
[1760013930117,0.00167259,4408.5,4408.4,41.55754]
[1760013930316,0.00167259,4408.5,4408.4,41.78854]
[1760013930721,0.00167259,4408.5,4408.4,46.78854]
[1760013931219,0.3301,4409.8,4409.7,0.3504]
[1760013932216,0.33204089,4409.8,4409.7,0.3504]
[1760013933228,0.3301,4409.6,4409.5,40.8]
[1760013933816,0.73818,4409.1,4409.0,3.2078]
[1760013934123,0.3301,4409.1,4409.0,3.5582]
[1760013934321,0.3301,4409.1,4409.0,44.3582]
[1760013935118,0.1373,4409.5,4409.1,0.75848]
[1760013935417,0.40807,4409.3,4409.2,0.3504]
[1760013935821,0.73817,4409.3,4409.2,0.3504]
[1760013936015,0.40808,4409.1,4409.0,44.0078]
[1760013936224,0.73818,4409.1,4409.0,44.0078]
[1760013936929,0.83463,4408.6,4408.5,3.4227]
[1760013937129,1.16473,4408.6,4408.5,3.2078]
[1760013937522,1.22003124,4411.4,4408.5,3.2078]
[1760013937523,0.5406,4408.9,4408.8,0.7985]
[1760013937830,0.3301,4409.1,4409.0,0.5836]
[1760013938130,0.5406,4409.1,4409.0,0.7985]
[1760013938329,0.5406,4409.1,4409.0,41.5985]
[1760013939325,0.5406,4409.1,4409.0,44.0078]
[1760013939527,0.5406,4409.1,4409.0,40.8]
[1760013939830,0.7566,4408.8,4408.7,0.63811]
[1760013940023,0.1373,4409.0,4408.5,3.2078]
[1760013940024,0.5461,4408.6,4408.5,3.2078]
[1760013940225,0.3301,4408.6,4407.9,0.40819]
[1760013940528,0.4674,4408.0,4407.9,3.2078]
[1760013940723,0.6974,4408.0,4407.9,3.2078]
[1760013940925,0.6974,4408.0,4407.5,0.00285863]
[1760013940926,9.70703356,4408.0,4407.5,0.00285863]
[1760013941126,0.73832,4407.6,4407.5,0.00285863]
[1760013941532,3.72747356,4407.6,4407.5,0.00285863]
[1760013942337,3.31925356,4407.6,4407.5,0.00285863]
[1760013944028,3.54925356,4407.6,4407.5,0.00285863]
[1760013947135,0.73969,4406.8,4406.7,3.2078]
[1760013947540,0.73969,4406.8,4406.0,1.1474]
[1760013947541,1.02075,4406.8,4406.1,3.2078]
[1760013947731,0.3314,4405.9,4405.8,0.40838]
[1760013947930,0.63834,4406.3,4405.8,0.3487]
[1760013948130,0.3314,4406.2,4406.1,0.75705]
[1760013948532,0.00176503,4406.3,4406.1,0.75705]
[1760013948831,0.00176503,4406.3,4406.2,5.3487]
[1760013949031,3.2078,4408.1,4407.9,0.75689]
[1760013949236,3.2078,4408.1,4408.0,0.3487]
[1760013949541,0.3314,4408.0,4407.9,0.40818]
[1760013950039,0.33318127,4408.0,4407.9,0.40818]
[1760013950943,0.33318127,4408.0,4407.9,0.75688]
[1760013951238,0.33318127,4408.0,4407.9,0.40818]
[1760013951640,0.00178127,4408.0,4407.9,0.75688]
[1760013952332,0.33318127,4408.0,4407.9,0.40818]
[1760013953236,0.33318127,4408.0,4407.9,0.75688]
[1760013953837,0.40823,4407.5,4407.3,0.3487]
[1760013954042,0.3314,4407.4,4407.3,0.40824]
[1760013954735,0.3314,4407.2,4407.1,0.40826]
[1760013955741,3.5392,4407.5,4407.4,0.75694]
[1760013956034,0.3314,4407.9,4407.8,0.4082]
[1760013956239,3.43958127,4408.0,4407.9,0.3487]
[1760013956440,3.77098127,4408.0,4407.8,0.4082]
[1760013956638,0.3314,4407.9,4407.8,0.4082]
[1760013957433,0.3314,4407.9,4407.1,1.25067]
[1760013957639,0.3314,4407.9,4407.2,1.02064]
[1760013957942,0.3314,4407.9,4407.1,1.25067]
[1760013957943,0.3314,4407.9,4407.8,0.4082]
[1760013958139,3.97556127,4408.0,4407.9,0.3487]
[1760013958140,3.20958127,4408.0,4407.9,0.3487]
[1760013958344,3.54798127,4408.0,4407.8,0.4082]
[1760013958540,3.34598127,4408.0,4407.9,40.8]
[1760013958842,0.23,4407.9,4407.8,0.4082]
[1760013959138,0.5684,4407.9,4407.8,0.4082]
[1760013959343,0.23,4407.9,4407.4,40.8]
[1760013959645,0.4082,4407.8,4407.0,1.49497]
[1760013959841,0.40824,4407.4,4406.9,0.3389]
[1760013960141,0.3384,4407.3,4407.2,0.40825]
[1760013960639,0.3384,4407.3,4406.7,3.2078]
[1760013960640,2.94157741,4407.3,4406.7,3.2078]
[1760013960839,0.3384,4407.1,4406.9,0.40828]
[1760013961035,0.23,4407.0,4406.9,0.74718]
[1760013961231,0.13818127,4408.0,4407.9,0.40819]
[1760013961432,0.40821,4407.7,4407.4,0.3389]
[1760013961635,0.54463,4407.5,4406.8,0.3389]
[1760013961840,0.74666,4407.2,4407.1,0.40826]
[1760013962044,0.3384,4406.8,4406.6,0.40831]
[1760013962247,0.3384,4406.9,4406.5,0.40832]
[1760013962546,0.1364,4406.5,4406.4,0.40832]
[1760013962746,0.4748,4406.5,4406.4,0.40832]
[1760013963041,0.1364,4406.5,4405.7,0.23]
[1760013963247,0.54472,4406.5,4405.9,40.8]
[1760013963447,0.3384,4406.3,4406.2,0.40834]
[1760013963742,0.4748,4406.0,4405.9,40.8]
[1760013964145,0.74677,4405.9,4405.4,0.40842]
[1760013964333,0.97677,4405.9,4405.5,0.40841]
[1760013965141,0.5684,4405.9,4405.7,0.40838]
[1760013965443,0.3384,4405.9,4405.7,0.40838]
[1760013965643,0.4504,4406.3,4406.2,0.40835]
[1760013966540,0.112,4406.3,4406.1,0.40835]
[1760013966845,0.3384,4406.2,4406.1,0.40835]
[1760013967237,0.3384,4405.9,4405.3,0.3389]
[1760013967442,0.3384,4405.9,4405.8,0.34176401]
[1760013967845,0.3384,4406.1,4405.8,0.00286401]
[1760013968047,0.3384,4406.1,4405.9,0.3389]
[1760013968249,0.40837,4406.0,4405.9,0.40837]
[1760013968448,0.74677,4406.0,4405.9,0.40837]
[1760013968637,0.4504,4406.3,4406.2,0.40835]
[1760013968840,0.40835,4406.2,4405.8,0.00286401]
[1760013969043,0.112,4406.3,4405.9,0.3389]
[1760013969247,0.4504,4406.3,4406.2,0.40835]
[1760013969647,0.85875,4406.3,4406.0,0.40836]
[1760013969848,0.3384,4406.2,4406.1,0.40836]
[1760013970347,0.112,4406.3,4405.8,0.00286401]
[1760013970546,0.3384,4405.9,4405.8,0.41124401]
[1760013970945,0.112,4406.3,4406.2,0.40835]
[1760013971146,0.4504,4406.3,4406.2,0.40835]
[1760013971348,0.3384,4406.1,4406.0,0.40836]
[1760013971642,0.112,4406.3,4406.1,0.40836]
[1760013971846,0.3384,4406.2,4406.1,0.40836]
[1760013972052,0.3384,4405.9,4405.8,0.00286401]
[1760013972647,0.3384,4405.3,4405.0,3.2078]
[1760013972847,0.3384,4405.2,4405.1,0.40845]
[1760013973049,0.3384,4405.2,4405.1,41.20845]
[1760013973549,0.3384,4405.7,4405.6,0.4084]
[1760013973750,0.3384,4405.7,4405.6,0.7473]
[1760013973947,0.4748,4406.0,4405.9,0.40837]
[1760013974149,0.3384,4406.0,4405.9,0.74727]
[1760013974549,0.6969,4406.4,4405.7,1.02097]
[1760013974944,0.3384,4406.2,4406.1,0.40835]
[1760013975450,0.3384,4406.0,4405.9,0.40837]
[1760013975651,0.40839,4405.8,4405.6,0.3389]
[1760013975848,0.40841,4405.5,4405.4,0.40841]
[1760013976051,0.3384,4405.2,4405.1,0.34113516]
[1760013976453,0.3384,4405.2,4405.1,41.14113516]
[1760013976659,0.3384,4405.2,4405.1,40.80223516]
[1760013976857,0.3384,4405.2,4405.1,0.00223516]
[1760013980155,0.3384,4405.2,4404.0,0.3389]
[1760013980156,8.28809439,4405.2,4404.0,0.3389]
[1760013980350,0.54496,4404.0,4403.8,0.40856]
[1760013980550,0.3384,4403.9,4403.8,0.40856]
[1760013980756,0.3384,4403.9,4403.8,41.20856]
[1760013981152,0.3384,4403.9,4403.8,41.2112578]
[1760013981455,0.34065946,4403.9,4403.8,40.8026978]
[1760013981658,0.34065946,4403.9,4403.8,0.0026978]
[1760013983367,3.29739757,4403.9,4403.8,0.0026978]
[1760013983554,0.00225946,4403.9,4403.8,0.3415978]
[1760013984055,0.34065946,4403.9,4403.8,0.0026978]
[1760013985559,0.00225946,4403.9,4403.8,0.3415978]
[1760013985957,0.34065946,4403.9,4403.8,0.0026978]
[1760013986162,3.35464048,4403.9,4403.8,0.0026978]
[1760013988753,3.58464048,4403.9,4403.8,0.0026978]
[1760013991161,3.99320048,4403.9,4403.8,0.0026978]
[1760013991358,4.44550048,4403.9,4403.8,0.0026978]
[1760013991766,1.21094,4403.0,4402.9,0.66136256]
[1760013991961,0.8023,4403.0,4402.9,1.00726256]
[1760013992366,0.8023,4403.0,4402.9,41.80726256]
[1760013992757,0.8023,4403.0,4402.9,40.82271256]
[1760013992965,0.9401,4403.0,4402.9,40.82529247]
[1760013993268,0.9401,4403.0,4402.9,0.25529247]
[1760013993465,0.8023,4403.0,4402.9,0.60119247]
[1760013993662,0.8023,4403.0,4402.9,0.82159247]
[1760013993863,0.9401,4403.0,4402.9,0.02529247]
[1760013995356,1.1701,4403.0,4402.9,0.02529247]
[1760013996566,4.18094125,4403.0,4402.9,0.02529247]
[1760013997070,0.8023,4402.1,4402.0,3.2078]
[1760013997371,0.75881,4401.3,4400.6,0.5759]
[1760013997562,0.35,4401.2,4401.1,0.40881]
[1760013997968,0.75882,4401.2,4401.1,0.00203737]
[1760013999788,0.75882,4401.2,4399.8,3.2078]
[1760013999789,0.35,4400.4,4399.8,3.2078]
[1760013999978,0.1378,4400.0,4399.6,0.40895]
[1760014000179,0.1378,4400.0,4399.2,0.7549]
[1760014000379,0.35,4399.5,4399.2,0.40899]
[1760014000683,0.35,4399.3,4399.2,0.0019118]
[1760014001079,3.29628652,4399.3,4399.2,0.0019118]
[1760014002486,0.581,4399.3,4399.2,0.0019118]
[1760014002884,0.00245313,4399.5,4399.4,0.3459]
[1760014003076,0.00245313,4399.5,4399.4,3.5537]
[1760014003786,0.00245313,4399.5,4399.4,8.5537]
[1760014004293,0.00245313,4399.5,4399.4,49.3537]
[1760014004788,3.13e-06,4399.5,4399.4,46.1459]
[1760014005982,3.13e-06,4399.5,4399.4,41.3769]
[1760014006388,3.13e-06,4399.5,4399.4,46.3769]
[1760014006984,0.4586,4401.0,4400.9,0.40884]
[1760014007283,0.4586,4401.5,4401.3,0.4088]
[1760014007480,0.3208,4401.9,4401.3,0.4088]
[1760014007688,0.3208,4401.9,4401.8,0.3312]
[1760014007882,0.32360065,4401.9,4401.8,0.3312]
[1760014008182,0.00280065,4401.9,4401.2,0.3312]
[1760014008383,0.00280065,4401.9,4401.8,0.73995]
[1760014008785,0.32360065,4401.9,4401.8,0.40875]
[1760014010288,0.00280065,4401.9,4401.6,0.40877]
[1760014010491,0.00280065,4401.9,4401.8,0.40875]
[1760014010688,0.00280065,4401.9,4401.8,0.73995]
[1760014010992,0.3208,4401.8,4401.3,0.4088]
[1760014011189,0.00280065,4401.9,4401.4,0.40879]
[1760014011385,0.40876,4401.8,4401.5,0.40878]
[1760014011585,0.72957,4401.7,4401.4,0.73999]
[1760014011886,0.40879,4401.5,4401.2,0.40881]
[1760014012091,0.3208,4401.3,4401.2,0.40881]
[1760014012288,0.40876,4401.8,4401.5,0.40878]
[1760014012486,0.3208,4401.8,4401.2,0.3312]
[1760014012687,0.00280065,4401.9,4401.8,0.73995]
[1760014013287,0.3208,4402.8,4401.8,8.94775]
[1760014013589,0.72943,4403.2,4403.0,0.3312]
[1760014013789,0.1816,4403.3,4402.0,0.1349]
[1760014013790,0.40865,4403.0,4402.1,0.3312]
[1760014013990,0.40865,4403.0,4402.2,40.8]
[1760014014186,0.40863,4403.2,4402.9,0.40865]
[1760014014494,0.40863,4403.2,4403.0,3.75134]
[1760014014495,0.00172727,4403.2,4403.0,3.75134]
[1760014014792,0.00172727,4403.2,4403.1,40.8]
[1760014015093,0.00172727,4403.2,4403.1,41.1312]
[1760014016789,0.32252727,4403.2,4403.1,41.1312]
[1760014017089,0.32252727,4403.2,4403.1,40.8]
[1760014017389,0.00172727,4403.2,4403.1,41.1312]
[1760014017889,0.00172727,4403.2,4403.1,41.3622]
[1760014018994,0.00172727,4403.2,4403.1,41.1312]
[1760014019197,0.00172727,4403.2,4403.1,41.3622]
[1760014019892,0.00172727,4403.2,4403.1,41.1312]
[1760014020390,0.32582727,4403.2,4403.1,41.1312]
[1760014020697,0.00172727,4403.2,4403.1,41.1312]
[1760014021193,0.32582727,4403.2,4403.1,40.8]